[Event "MCCT Chessable Masters-KO 2022"]
[Site "Online"]
[Date "2022.05.23"]
[Round "1.1"]
[White "Carlsen, Magnus"]
[Black "Anton Guijarro, David"]
[Result "1-0"]
[ECO "B06"]
[WhiteElo "2864"]
[BlackElo "2691"]
[Annotator "TA"]
[PlyCount "107"]
[EventDate "2022.05.23"]
[EventType "k.o."]
[EventCountry "NET"]
[SourceTitle "playchess.com"]
[Source "ChessBase"]
[SourceQuality "1"]
[TimeControl "900+10"]

{[%evp 9,107,0,0,4,6,10,15,11,8,-30,-2,-22,-18,-48,-22,-70,-72,-77,-73,-84,-85,-79,-70,-80,-69,-52,0,0,0,0,0,0,0,0,0,0,106,22,26,22,45,53,60,60,72,66,62,69,70,68,86,84,110,96,158,88,97,71,131,64,77,95,89,89,231,216,385,232,213,211,161,129,142,17,68,985,70,1248,443,1244,1128,587,12833,7662,12842,12835,12847,12847,12848,12848,12849,12848,12849,12849,12850,12850,12850,27999,27999,27999]} 1. f4 {[%emt 0:00:00]} g6 {[%emt 0:00:00]} 2. e4 {[%emt 0:00:26]} d5 {[%emt 0:00:14]} 3. d3 {[%emt 0:00:03]} Bg7 {[%emt 0:00:53]} 4. Nf3 {[%emt 0:00:02]} c5 {[%emt 0:00:28]} 5. Be2 {[%emt 0:00:31]} Nc6 {[%emt 0:00:10]} 6. O-O {[%emt 0:00:02] B06: Modern Defence.} e6 {[%emt 0:00:42]} 7. c3 {[%emt 0:00:49]} Nge7 {[%emt 0:00:07]} 8. Be3 {[%emt 0:00:13] The position is equal.} b6 {[%emt 0:00:35]} 9. Qc2 {[%emt 0:03:48] [#]} Ba6 $146 {[%emt 0:01:21]} ({Predecessor:} 9... O-O 10. Nbd2 Ba6 11. Rfe1 Qc7 12. e5 Rfd8 13. Bf2 Rac8 14. Bf1 Bb7 15. g4 Qd7 {1-0 (57) Kovalev,V (2648)-Yoseph,T (2455) Chess.com INT 2020}) 10. a4 {[%emt 0:00:15]} Rc8 {[%emt 0:00:58][%cal Oc6d4]} 11. Rd1 {[%emt 0:01:57]} O-O {[%emt 0:03:09][%cal Oc6d4]} (11... Nd4 $5 12. Bxd4 (12. cxd4 cxd4 13. Nc3 dxe3 $17) 12... cxd4 $15) 12. Na3 {[%emt 0:00:03] [#]} (12. Bf2 $11) 12... Nd4 $1 $15 {[%emt 0:01:02]} 13. Bxd4 {[%emt 0:01:28]} ({Don't blunder} 13. cxd4 $2 cxd4 14. Qb1 dxe3 $17) 13... cxd4 {[%emt 0:00:00]} 14. c4 {[%emt 0:00:47]} Qc7 {[%emt 0:01:32]} 15. Qd2 {[%emt 0:00:22]} dxe4 {[%emt 0:00:14]} 16. dxe4 {[%emt 0:00:03]} Rfd8 {[%emt 0:00:46]} 17. Bd3 {[%emt 0:00:29]} e5 {[%emt 0:00:34]} (17... Bb7 $15) 18. Nb5 $11 {[%emt 0:00:06]} Qb8 {[%emt 0:00:54]} 19. Nxe5 {[%emt 0:02:04]} Bxe5 {[%emt 0:00:03]} 20. fxe5 {[%emt 0:00:00]} Nc6 {[%emt 0:00:29]} 21. Nd6 {[%emt 0:00:04]} Rc7 $1 {[%emt 0:01:15]} 22. Qg5 {[%emt 0:00:05][%cal Ob2b4] b4! is the strong threat.} Rcd7 {[%emt 0:01:28]} (22... Re7 $11 {keeps the balance.}) 23. b4 {[%emt 0:01:41] White is much more active.} (23. a5 $1 $16 {[%cal Ra5b6] Strongly threatening axb6.} Bb7 24. axb6 axb6 25. c5 (25. Nxb7 Rxb7 26. e6 fxe6 $15) 25... bxc5 26. Bb5) 23... Nxe5 {[%emt 0:00:16]} 24. Qxe5 {[%emt 0:00:31] Threatens to win with c5.} Rxd6 {[%emt 0:00:14]} 25. c5 {[%emt 0:00:33]} bxc5 {[%emt 0:00:30]} 26. bxc5 {[%emt 0:00:03]} Rc6 {[%emt 0:00:37]} 27. Qxb8 {[%emt 0:00:02]} Rxb8 {[%emt 0:00:00]} 28. Bxa6 {[%emt 0:00:01]} Rxa6 {[%emt 0:00:00]} 29. Rxd4 $16 {[%emt 0:00:01][%mdl 4096] Endgame KRR-KRR} Rc6 {[%emt 0:00:10]} 30. Rc1 {[%emt 0:00:02]} Rbc8 {[%emt 0:00:22]} 31. Rd5 {[%emt 0:00:02]} Kf8 {[%emt 0:00:12]} (31... Rb8 $142) 32. Kf2 {[%emt 0:00:03]} (32. Rd7 $142 $1) 32... Ke7 {[%emt 0:00:01]} 33. g4 {[%emt 0:00:26]} h6 {[%emt 0:00:21]} ({Black should play} 33... Rb8) 34. h4 {[%emt 0:00:01]} (34. Ke3 $16) 34... Rb8 $1 $14 {[%emt 0:00:03]} 35. g5 {[%emt 0:00:02]} hxg5 {[%emt 0:00:03]} 36. hxg5 {[%emt 0:00:00]} Ke6 {[%emt 0:00:06] Prevents Re5+.} (36... Rb4 $16) 37. Ke3 $18 {[%emt 0:00:18]} Rb3+ $2 {[%emt 0:00:20]} (37... Rb4 {was worth a try.} 38. Rf1 Rc7) 38. Kd4 {[%emt 0:00:03] Black must now prevent Re5+.} Rb4+ {[%emt 0:00:13]} 39. Rc4 {[%emt 0:00:13]} Rb1 {[%emt 0:00:03] [#]} 40. Re5+ $1 {[%emt 0:00:36]} Kd7 {[%emt 0:00:02]} 41. Kd5 {[%emt 0:00:50]} ({White should try} 41. Rc2 $16) 41... Rd1+ $2 {[%emt 0:00:34][%mdl 8192]} (41... Ra6 $11) 42. Rd4 {[%emt 0:00:02]} Rxd4+ {[%emt 0:00:02]} 43. Kxd4 {[%emt 0:00:00] KR-KR} Ra6 {[%emt 0:00:03]} 44. a5 {[%emt 0:01:01]} (44. Rd5+ $142 Ke7 45. Ke5) 44... Kd8 {[%emt 0:00:32]} 45. Kd5 {[%emt 0:01:36] And now c6 would win.} Rxa5 {[%emt 0:00:06] [#]} 46. Kd6 {[%emt 0:00:01]} Rb5 {[%emt 0:00:20]} 47. Re7 {[%emt 0:00:18]} Rxc5 {[%emt 0:00:19]} 48. Rxa7 {[%emt 0:00:07]} Rc8 {[%emt 0:00:08]} 49. Rxf7 {[%emt 0:00:18][%cal Rf7f8]} Ke8 {[%emt 0:00:03] Against Rf8+} 50. Rf6 {[%emt 0:00:33]} Ra8 {[%emt 0:00:11]} 51. Ke5 {[%emt 0:00:05]} Ra5+ {[%emt 0:00:09]} 52. Kf4 {[%emt 0:00:01]} Rb5 {[%emt 0:00:09]} 53. Rxg6 {[%emt 0:00:03]} Kf7 {[%emt 0:00:06]} 54. Ra6 {[%emt 0:00:11] Weighted Error Value: White=0.24 (precise) /Black=0.25 (precise)} 1-0

[Event "MCCT Chessable Masters-KO 2022"]
[Site "Online"]
[Date "2022.05.23"]
[Round "1.1"]
[White "Ding, Liren"]
[Black "Mamedyarov, Shakhriyar"]
[Result "1-0"]
[ECO "D85"]
[WhiteElo "2806"]
[BlackElo "2770"]
[Annotator "TA"]
[PlyCount "107"]
[EventDate "2022.05.23"]
[EventType "k.o."]
[EventCountry "NET"]
[SourceTitle "playchess.com"]
[Source "ChessBase"]
[SourceQuality "1"]
[TimeControl "900+10"]

{[%evp 21,107,0,0,0,0,0,6,0,23,37,115,110,85,87,96,48,241,183,205,145,263,-48,-59,-69,0,0,0,-27,100,0,0,0,0,0,0,0,0,0,48,0,-35,-39,-39,-221,-228,-188,-133,-131,-107,-93,-100,-575,-40,-40,-40,-40,-43,-44,-52,-308,-272,-375,-104,-365,0,0,0,0,0,0,0,0,0,0,1323,1258,1268,1172,1026,946,29979,29980,29980,29981,29981,29982,29975,29972]} 1. d4 {[%emt 0:00:00]} Nf6 {[%emt 0:00:00]} 2. c4 {[%emt 0:00:02]} g6 {[%emt 0:00:01]} 3. Nc3 {[%emt 0:00:02]} d5 {[%emt 0:00:02]} 4. Nf3 {[%emt 0:00:06]} Bg7 {[%emt 0:00:01]} 5. cxd5 {[%emt 0:00:01]} Nxd5 {[%emt 0:00:01]} 6. e4 {[%emt 0:00:00]} Nxc3 {[%emt 0:00:01]} 7. bxc3 {[%emt 0:00:00]} c5 {[%emt 0:00:02]} 8. Be3 {[%emt 0:00:01]} Qa5 {[%emt 0:00:16]} 9. Qd2 {[%emt 0:00:02]} O-O {[%emt 0:00:01]} 10. Rc1 {[%emt 0:00:06]} Rd8 {[%emt 0:00:15]} 11. d5 {[%emt 0:00:06]} e6 {[%emt 0:00:01]} 12. Bg5 {[%emt 0:00:03] The main line 12.Bg5 scores better than 12.c4. D85: Exchange Grünfeld: Unusual White 7th moves and lines with 7 Nf3.} Re8 {[%emt 0:00:06]} 13. d6 {[%emt 0:01:22]} Nd7 {[%emt 0:00:03]} 14. Bh6 {[%emt 0:01:07] [#] The position is equal.} Bh8 $146 {[%emt 0:00:32]} ({Predecessor:} 14... Qa4 15. Bd3 e5 16. h4 Nf6 17. Bxg7 Kxg7 18. h5 Nxe4 19. Qe3 Nxd6 20. hxg6 hxg6 21. Qh6+ Kf6 22. Qg5+ Kg7 23. Qh6+ Kf6 24. Qg5+ Kg7 {½-½ (24) Pashikian,A (2616)-Zhou,J (2636) Martuni 2011}) 15. h4 {[%emt 0:00:13]} b5 {[%emt 0:00:33]} ({Black should try} 15... Qa4 $1 $14) 16. h5 $16 {[%emt 0:01:13] White is more active.} Bb7 {[%emt 0:00:03]} 17. hxg6 {[%emt 0:00:22]} hxg6 {[%emt 0:00:50]} 18. Bd3 {[%emt 0:03:58]} (18. Bg5 $16) 18... b4 $2 {[%emt 0:00:36]} ({Black should play} 18... c4 $14 19. Bb1 Qa3) 19. Qf4 $18 {[%emt 0:00:58]} (19. cxb4 cxb4 20. Qg5 (20. Rc7 Bc3 $19) 20... Ne5 21. Nxe5 b3+ 22. Ke2 Qxe5 $14) 19... c4 {[%emt 0:00:23]} (19... Bxc3+ $2 20. Rxc3 $1 {[%mdl 512]} b3 21. Kd2 $18) 20. Bxc4 {[%emt 0:00:55]} ({Inferior is} 20. Ng5 Bf6 21. Bc2 (21. Bxc4 Rac8 $15) 21... b3 22. axb3 Qxc3+ 23. Kf1 cxb3 $11) 20... Rac8 {[%emt 0:01:02] [#]} (20... bxc3 $16 {was worth a try.} 21. Bg5 (21. Ng5 Bf6 $11) 21... Bg7) 21. Ng5 $2 {[%emt 0:00:41]} Bf6 $36 {[%emt 0:00:15][%mdl 2048] Black fights for an advantage.} 22. Bb3 {[%emt 0:02:38]} bxc3 {[%emt 0:00:19]} (22... Rxc3 $15 23. O-O Qe5 24. Qxe5 Nxe5) 23. Kf1 $11 {[%emt 0:01:36][%cal Og5h7]} Qe5 {[%emt 0:01:44]} 24. Qxe5 {[%emt 0:00:45]} Nxe5 {[%emt 0:00:04]} (24... Bxe5 $11 25. Rh3 Nc5 26. Rhxc3 Bxc3 27. Rxc3 Red8) 25. Rh3 {[%emt 0:02:34]} (25. f4 $1 $16 {[%cal Rf4e5]} Nd7 26. e5) 25... Red8 {[%emt 0:01:42]} 26. f4 {[%emt 0:00:03]} Ba6+ {[%emt 0:04:50]} 27. Ke1 {[%emt 0:00:02]} Nd3+ {[%emt 0:02:52]} (27... Rxd6 $2 28. fxe5 Bxe5 29. Nf3 $18) 28. Rxd3 $1 {[%emt 0:00:01] Chess con chili.} Bxd3 {[%emt 0:00:00]} 29. e5 {[%emt 0:00:01]} c2 {[%emt 0:00:00]} 30. Kd2 {[%emt 0:00:25]} (30. Nxe6 $14 fxe6 31. Bxe6+ Kh7 32. Bxc8 Rxc8 33. exf6) 30... Bf5 $15 {[%emt 0:00:08]} 31. g4 {[%emt 0:00:02]} Bxg4 {[%emt 0:00:14][%cal Og4f5]} 32. Ne4 $2 {[%emt 0:00:10]} (32. Rxc2 $15 Rxc2+ 33. Bxc2) 32... Bh4 $1 $19 {[%emt 0:00:03]} 33. Bg5 {[%emt 0:00:51]} Bxg5 {[%emt 0:00:07]} 34. fxg5 {[%emt 0:00:00] [#] Nf6+ is the strong threat.} Bf5 $1 {[%emt 0:00:12]} 35. Nf6+ {[%emt 0:00:01]} Kg7 {[%emt 0:00:03] And now ...Rh8 would win.} 36. d7 $2 {[%emt 0:00:31][%mdl 8192]} (36. Bxc2 $17 {was the crucial defense.} Bxc2 37. Rxc2) 36... Rc5 $2 {[%emt 0:00:59]} (36... Kf8 $19 37. Bxc2 Rxc2+ 38. Rxc2 Bxc2 39. Kxc2 Ke7) 37. Rh1 $1 $15 {[%emt 0:00:04]} c1=Q+ {[%emt 0:00:31]} (37... Rxe5 $2 38. Rh7+ Kf8 39. Rh8+ Ke7 40. Re8+ Kd6 41. Rxd8 Re2+ 42. Kxe2 $18) 38. Rxc1 {[%emt 0:00:01]} Rxc1 {[%emt 0:00:00]} (38... Rxe5 39. Rc8 Rxd7+ 40. Nxd7 Rd5+ 41. Bxd5 exd5 42. Rd8 Bxd7 43. Rxd7 $18) 39. Kxc1 {[%emt 0:00:01][%mdl 4096] Endgame KRB-KBN} Kf8 {[%emt 0:00:00] aiming for ...Bd3.} 40. Kd2 {[%emt 0:00:06][%mdl 8192] Inhibits Bd3.} ({Only move:} 40. Ba4 $1 $15) 40... Ke7 $19 {[%emt 0:00:02] Hoping for ...Rh8.} 41. Kc3 {[%emt 0:00:07]} a6 $2 {[%emt 0:01:53]} (41... Rh8 $19 {and Black stays clearly on top.} 42. Ba4 a6) 42. Ba4 $2 {[%emt 0:00:02][%mdl 8192]} (42. Bc4 $17) 42... Bh3 $2 {[%emt 0:00:01]} (42... Rh8 $19 {Threatens to win with ...Bb1.} 43. Kb4 Bd3) 43. Ne4 $11 {[%emt 0:00:11]} Bf1 {[%emt 0:00:04]} 44. Nd6 $1 {[%emt 0:00:23]} Bb5 {[%emt 0:00:06]} (44... Rb8 $5 45. Bc6 Be2 $11) 45. Nxb5 {[%emt 0:00:01]} axb5 {[%emt 0:00:00]} 46. Bxb5 {[%emt 0:00:00] KR-KB} Rh8 $1 {[%emt 0:01:02]} 47. a4 {[%emt 0:00:02][%cal Ba2a4,Ba4a5,Ba5a6,Ba6a7][%mdl 32]} Rh3+ $2 {[%emt 0:00:04][%mdl 8192] [#]} (47... Kd8 $11) 48. Kb4 $1 $18 {[%emt 0:00:04] White wants to mate with a5.} Kd8 {[%emt 0:00:51]} 49. a5 {[%emt 0:00:01] Threatening mate with a6.} Kc7 {[%emt 0:00:01]} 50. a6 {[%emt 0:00:00]} Rh4+ {[%emt 0:00:09]} 51. Kc5 {[%emt 0:00:17] White mates.} Rh1 {[%emt 0:00:06]} 52. d8=Q+ {[%emt 0:00:10][%mdl 64] Promotion} Kxd8 {[%emt 0:00:02]} 53. a7 {[%emt 0:00:00]} Ra1 {[%emt 0:00:38]} 54. Kb6 {[%emt 0:00:01] Both players deserved the win here.  Weighted Error Value: White=0.63/Black=0.81} 1-0

[Event "MCCT Chessable Masters-KO 2022"]
[Site "Online"]
[Date "2022.05.23"]
[Round "1.1"]
[White "Mamedyarov, Shakhriyar"]
[Black "Ding, Liren"]
[Result "1-0"]
[ECO "D41"]
[WhiteElo "2770"]
[BlackElo "2806"]
[Annotator "TA"]
[PlyCount "95"]
[EventDate "2022.05.23"]
[EventType "k.o."]
[EventCountry "NET"]
[SourceTitle "playchess.com"]
[Source "ChessBase"]
[SourceQuality "1"]
[TimeControl "900+10"]

{[%evp 11,95,25,28,28,29,-11,27,26,28,34,30,32,18,26,27,25,42,15,10,4,2,6,10,2,6,0,0,-66,14,11,29,14,14,0,0,0,79,73,97,97,132,131,120,119,175,176,166,143,190,202,222,223,261,260,297,266,272,271,538,538,538,522,794,761,725,691,633,583,783,772,5694,5629,5498,5425,5177,5146,4674,3906,4525,4532,4525,4525,29964,29966,5439,5248]} 1. d4 {[%emt 0:00:00]} Nf6 {[%emt 0:00:00]} 2. c4 {[%emt 0:00:01]} e6 {[%emt 0:00:03]} 3. Nf3 {[%emt 0:00:01]} d5 {[%emt 0:00:00]} 4. Nc3 {[%emt 0:00:00]} c5 {[%emt 0:00:01]} 5. cxd5 {[%emt 0:00:02]} cxd4 {[%emt 0:00:01]} (5... Nxd5 6. e4 Nxc3 7. bxc3 cxd4 8. cxd4 Bb4+ 9. Bd2 Bxd2+ 10. Qxd2 O-O 11. Bc4 Nd7 12. O-O b6 13. Rfe1 Bb7 14. Bb3 Rc8 15. Rad1 Re8 16. h3 Nf6 17. Qf4 Nh5 18. Qh2 h6 19. Re3 Rc7 20. Ne5 Nf6 21. Qf4 b5 {0-1 (43) Mamedyarov,S (2765)-Ding,L (2799) Chess.com INT 2021}) 6. Qxd4 {[%emt 0:00:01]} exd5 {[%emt 0:00:00]} 7. e4 {[%emt 0:00:02] D41: Queen's Gambit Declined: Semi-Tarrasch with 5 cxd5.} dxe4 {[%emt 0:00:03]} 8. Qxd8+ {[%emt 0:00:02]} Kxd8 {[%emt 0:00:00]} 9. Ng5 {[%emt 0:00:00][%csl LRe4,LRf7] White has an edge.} Be6 {[%emt 0:00:00]} 10. Nxe6+ {[%emt 0:00:01]} fxe6 {[%emt 0:00:01]} 11. Bg5 {[%emt 0:00:00]} Nc6 {[%emt 0:00:17] Nowadays more popular than 11...Ke8.} 12. Bc4 {[%emt 0:00:05]} Ke7 {[%emt 0:00:13]} 13. Nxe4 {[%emt 0:00:02]} Kf7 {[%emt 0:00:13]} 14. Nd2 {[%emt 0:00:01] [#]} (14. Bxf6 $5 gxf6 15. O-O-O $14) 14... h6 $146 {[%emt 0:03:47]} ({Predecessor:} 14... Be7 15. O-O-O h6 16. Bf4 Nd5 17. Bg3 Nb6 18. Bd3 Rhd8 19. Be4 Rd4 20. Bf3 Bg5 {½-½ (41) Cousins,R (2328)-Doppelhammer,H (2373) ICCF email 2021}) 15. Bf4 {[%emt 0:00:06]} Rd8 {[%emt 0:00:27]} 16. O-O-O {[%emt 0:01:14]} Bd6 {[%emt 0:00:11]} 17. Be3 {[%emt 0:00:39]} Nd5 {[%emt 0:03:33]} 18. Rhe1 {[%emt 0:00:05]} Ne5 {[%emt 0:01:57] [#] Strongly threatening ...Rc8.} ({But not} 18... Bxh2 19. g3 $14) 19. Bxd5 {[%emt 0:01:49]} (19. Bf1 $11) 19... exd5 {[%emt 0:00:55]} ({Better is} 19... Nd3+ $15 20. Kb1 Nxe1 21. Bxb7 Bb4) 20. Kb1 $11 {[%emt 0:00:09]} Nc6 {[%emt 0:00:14]} 21. Nb3 {[%emt 0:00:13] Inhibits d4.} Bb4 {[%emt 0:00:19]} (21... Bb8 {with more complications.} 22. Bc5 g5 23. h3 b6) 22. Re2 {[%emt 0:00:01]} Rhe8 {[%emt 0:00:00][%cal Od5d4]} 23. Rc2 {[%emt 0:00:01]} Re4 {[%emt 0:00:10] [#]} (23... d4 $1 $11 24. Nxd4 (24. Bxd4 a5 $11) 24... Re4) 24. Nd4 $1 $16 {[%emt 0:00:14]} Nxd4 {[%emt 0:00:14]} 25. Rxd4 {[%emt 0:00:05]} a5 {[%emt 0:05:35]} 26. Rxe4 {[%emt 0:00:15]} dxe4 {[%emt 0:00:00][%mdl 4096] Endgame KRB-KRB} 27. Rc7+ {[%emt 0:00:01]} Kg6 {[%emt 0:00:00]} (27... Kf6 $16 {was called for.}) 28. Rxb7 $18 {[%emt 0:00:01]} Bd2 {[%emt 0:00:00]} 29. Bc5 {[%emt 0:00:56]} Be1 {[%emt 0:00:21]} (29... h5 $16 30. a4 Be1) 30. Re7 {[%emt 0:01:03]} Rd1+ {[%emt 0:01:12]} 31. Kc2 {[%emt 0:00:02]} Rd5 {[%emt 0:00:00]} 32. Be3 {[%emt 0:00:12]} Rf5 {[%emt 0:00:05]} 33. Re6+ {[%emt 0:00:03]} ({Not} 33. Rxe4 Bxf2 34. Bd2 Rc5+ 35. Kb1 Bg1 $16) 33... Kf7 {[%emt 0:00:18]} 34. Rxe4 {[%emt 0:00:02] And now Rf4 would win.} Bxf2 $2 {[%emt 0:00:01]} (34... g5 35. f4 Bb4) 35. Rf4 {[%emt 0:00:01]} Rxf4 {[%emt 0:00:01]} 36. Bxf4 {[%emt 0:00:00] a4 is the strong threat. KB-KB} Ke6 {[%emt 0:00:06]} 37. a4 {[%emt 0:00:07]} Kd5 {[%emt 0:00:03]} 38. Bd2 {[%emt 0:00:08]} Bb6 {[%emt 0:00:02]} 39. Kd3 {[%emt 0:00:01]} h5 {[%emt 0:00:00]} 40. h3 {[%emt 0:00:12]} g6 {[%emt 0:00:03]} 41. b4 {[%emt 0:00:31]} axb4 {[%emt 0:00:00]} 42. Bxb4 {[%emt 0:00:00]} Bc7 {[%emt 0:00:02]} 43. Bd2 {[%emt 0:00:04]} Bh2 {[%emt 0:00:14]} 44. a5 {[%emt 0:00:10][%cal Ba4a5,Ba5a6][%mdl 32]} Bc7 {[%emt 0:00:10]} 45. a6 {[%emt 0:00:08] White wants to mate with a7.} Kc6 {[%emt 0:00:01]} 46. Ke4 {[%emt 0:00:01]} Bh2 {[%emt 0:00:14]} 47. Bf4 {[%emt 0:00:20]} Bg1 {[%emt 0:00:06]} 48. Ke5 {[%emt 0:00:05] Weighted Error Value: White=0.06 (flawless) /Black=0.51} 1-0

[Event "MCCT Chessable Masters-KO 2022"]
[Site "Online"]
[Date "2022.05.23"]
[Round "1.1"]
[White "Giri, Anish"]
[Black "Tari, Aryan"]
[Result "1-0"]
[ECO "D02"]
[WhiteElo "2761"]
[BlackElo "2654"]
[Annotator "TA"]
[PlyCount "81"]
[EventDate "2022.05.23"]
[EventType "k.o."]
[EventCountry "NET"]
[SourceTitle "playchess.com"]
[Source "ChessBase"]
[SourceQuality "1"]
[TimeControl "900+10"]

{[%evp 9,81,9,8,0,1,0,16,9,31,19,26,22,26,12,10,19,8,14,29,0,0,11,4,4,7,8,32,23,44,32,25,13,131,133,112,55,113,110,120,107,114,96,88,89,151,103,178,167,177,35,212,214,321,321,312,277,359,359,359,345,393,393,497,456,462,475,595,603,1024,1001,1032,1018,844,825]} 1. d4 {[%emt 0:00:00]} Nf6 {[%emt 0:00:00]} 2. Nf3 {[%emt 0:00:01]} g6 {[%emt 0:00:04]} 3. Nbd2 {[%emt 0:00:02]} d5 {[%emt 0:00:38]} 4. b3 {[%emt 0:00:01]} a5 {[%emt 0:00:27]} 5. a4 {[%emt 0:00:49]} Bg7 {[%emt 0:00:09]} 6. Bb2 {[%emt 0:00:05] D02: 1 d4 d5 2 Nf3 sidelines, including 2...Nf6 3 g3 and 2...Nf6 3 Bf4.} O-O {[%emt 0:00:01]} 7. e3 {[%emt 0:00:02]} Bf5 {[%emt 0:01:49]} 8. Be2 {[%emt 0:00:42] [#] The position is equal.} Ne4 $146 {[%emt 0:00:38]} ({Predecessor:} 8... Nc6 9. O-O Nb4 10. Ne1 Ne4 11. c3 Nxd2 12. Qxd2 Nc6 13. Nd3 e5 14. Nxe5 Nxe5 15. dxe5 Bxe5 {0-1 (54) Carlsen,M (2872)-Vachier Lagrave,M (2780) London 2019}) 9. Nxe4 {[%emt 0:02:03]} (9. Ne5 {looks sharper.} c5 10. Nxe4 Bxe4 11. f3) 9... Bxe4 {[%emt 0:01:01]} 10. O-O {[%emt 0:00:14]} c5 {[%emt 0:00:17]} 11. c3 {[%emt 0:01:40]} cxd4 {[%emt 0:01:19]} 12. exd4 {[%emt 0:00:40]} Nc6 {[%emt 0:00:19]} 13. Ba3 {[%emt 0:00:41]} Qc7 {[%emt 0:01:23]} 14. Bd3 {[%emt 0:02:36]} (14. Ng5 $5 {[%cal Rg5e4]}) 14... Bxf3 {[%emt 0:01:35]} 15. Qxf3 {[%emt 0:00:02]} Rfd8 {[%emt 0:00:02]} 16. Rac1 {[%emt 0:02:20]} e5 {[%emt 0:00:31]} 17. dxe5 {[%emt 0:00:05]} Nxe5 {[%emt 0:00:06]} 18. Qg3 {[%emt 0:00:11]} Qb6 {[%emt 0:01:28]} 19. Bb5 {[%emt 0:00:04]} Nc6 {[%emt 0:00:15]} 20. Rfd1 {[%emt 0:01:47]} Na7 {[%emt 0:00:48]} (20... d4 $11 {remains equal.}) 21. Be7 $16 {[%emt 0:01:05] This bishop pair is nice.} Rdc8 {[%emt 0:00:03] [#]} 22. Rxd5 {[%emt 0:01:09] White is much more active. The black rooks are badly placed.} (22. Bd7 $1 $16) 22... Nxb5 {[%emt 0:02:11]} (22... Qe6 $14 23. Qd6 Rxc3 24. Rxc3 Bxc3) 23. Rxb5 {[%emt 0:00:03]} Qe6 {[%emt 0:00:01] Threatens to win with ...Rxc3.} 24. Bc5 {[%emt 0:02:10]} (24. Rxb7 Qe4 25. Rc7 Rxc7 26. Qxc7 Re8 $19) 24... Rc6 {[%emt 0:01:48]} 25. Qe3 {[%emt 0:00:05]} Qd7 {[%emt 0:00:11]} 26. g3 {[%emt 0:00:07]} h5 {[%emt 0:00:13]} ({Black should play} 26... Re8 27. Qf3 (27. Rxb7 $2 Qc8 $19) 27... Qc7) 27. h4 {[%emt 0:00:09]} ({White should try} 27. c4) 27... Rac8 {[%emt 0:00:36] [#]} (27... Re8 $16 {was necessary.} 28. Qf3 Qc7) 28. c4 $1 $18 {[%emt 0:00:26]} (28. Rxa5 Re6 29. Qf3 b6 $17) 28... Kh7 {[%emt 0:00:34]} 29. Rf1 {[%emt 0:00:12]} ({Not} 29. Rxa5 $2 Re6 30. Qg5 Re5 $19) (29. Re1 $18) 29... Rb8 $2 {[%emt 0:01:08] Black cannot hold the game after this.} (29... Rxc5 $1 $14 30. Rxc5 Bd4 31. Qxd4 (31. Rd5 Qxd5 32. cxd5 Bxe3 $14) 31... Qxd4 32. Rxc8 g5) 30. Qe7 {[%emt 0:00:06]} ({Stronger than} 30. Rxa5 b6 31. Bxb6 Rbxb6 $17) 30... Rc7 {[%emt 0:00:21]} (30... Qxe7 $142 31. Bxe7 Re6) 31. Qxd7 {[%emt 0:00:09]} Rxd7 {[%emt 0:00:00]} 32. Rxa5 {[%emt 0:00:04]} Bc3 {[%emt 0:00:01]} 33. Rb5 {[%emt 0:00:04]} Re8 {[%emt 0:00:01]} 34. Be3 {[%emt 0:00:05]} Be5 {[%emt 0:00:22]} 35. Kg2 {[%emt 0:00:04]} Bb8 {[%emt 0:00:01]} 36. Rc1 {[%emt 0:00:18] White is clearly winning.} Re6 {[%emt 0:00:19]} 37. Rc2 {[%emt 0:00:06]} f5 {[%emt 0:00:06]} 38. Rd2 {[%emt 0:00:04]} Rf7 {[%emt 0:00:04]} 39. Rd8 {[%emt 0:00:08]} Be5 {[%emt 0:00:01] [#]} 40. Rxe5 $1 {[%emt 0:00:12]} Rxe5 {[%emt 0:00:10]} 41. Bd4 {[%emt 0:00:00] Weighted Error Value: White=0.16 (very precise) /Black=0.34} 1-0